[Event "Late-Titled-Tuesday-Blitz-October-10-2023"]
[Site "Chess.com"]
[Date "2023.10.10"]
[Round "1"]
[White "Kiborg95"]
[Black "JonasGallasch"]
[Result "1-0"]
[WhiteElo "2810"]
[BlackElo "2431"]
[TimeControl "180+1"]
[EndTime "14:07:16 PDT"]
[Termination "Kiborg95 won by resignation"]

1. e4 {[%clk 0:02:59.3]} 1... c6 {[%clk 0:02:57.8]} 2. d4 {[%clk 0:02:58]} 2...
d5 {[%clk 0:02:58.7]} 3. e5 {[%clk 0:02:58.2]} 3... Bf5 {[%clk 0:02:57.8]} 4. h4
{[%clk 0:02:58.1]} 4... h5 {[%clk 0:02:55.9]} 5. c4 {[%clk 0:02:58.3]} 5... e6
{[%clk 0:02:51.5]} 6. Nc3 {[%clk 0:02:58.6]} 6... Nd7 {[%clk 0:02:37]} 7. cxd5
{[%clk 0:02:57.9]} 7... cxd5 {[%clk 0:02:35.2]} 8. Bd3 {[%clk 0:02:58.8]} 8...
Ne7 {[%clk 0:02:34]} 9. Bg5 {[%clk 0:02:58.2]} 9... Bxd3 {[%clk 0:02:31.1]} 10.
Qxd3 {[%clk 0:02:59.1]} 10... Qb6 {[%clk 0:02:31.4]} 11. Nf3 {[%clk 0:02:58.8]}
11... a6 {[%clk 0:02:23]} 12. O-O {[%clk 0:02:58.4]} 12... Nf5 {[%clk
0:02:23.4]} 13. Nxd5 {[%clk 0:02:58.3]} 13... exd5 {[%clk 0:02:23.4]} 14. Qxf5
{[%clk 0:02:58.3]} 14... Qe6 {[%clk 0:02:23.5]} 15. Qxe6+ {[%clk 0:02:53.7]}
15... fxe6 {[%clk 0:02:24.4]} 16. Rac1 {[%clk 0:02:54.1]} 16... Be7 {[%clk
0:01:50.6]} 17. Rc7 {[%clk 0:02:53.7]} 17... Rb8 {[%clk 0:01:43.8]} 18. Rfc1
{[%clk 0:02:48.3]} 18... Kd8 {[%clk 0:01:32]} 19. a4 {[%clk 0:02:39.7]} 19...
Rf8 {[%clk 0:01:27.6]} 20. b4 {[%clk 0:02:23.9]} 20... Rf7 {[%clk 0:01:15.8]}
21. Kf1 {[%clk 0:02:20]} 21... Nb6 {[%clk 0:01:02.1]} 22. a5 {[%clk 0:01:52.6]}
22... Nc4 {[%clk 0:01:02.2]} 23. Rxe7 {[%clk 0:01:52.6]} 23... Rxe7 {[%clk
0:01:03.1]} 24. Ke2 {[%clk 0:01:52.9]} 24... b6 {[%clk 0:00:57.3]} 25. Nd2
{[%clk 0:01:48.4]} 25... Nxd2 {[%clk 0:00:42.6]} 26. Kxd2 {[%clk 0:01:44.9]}
26... bxa5 {[%clk 0:00:41.7]} 27. bxa5 {[%clk 0:01:38.5]} 27... Rb4 {[%clk
0:00:39.1]} 28. Kd3 {[%clk 0:01:33.4]} 28... Kd7 {[%clk 0:00:36.1]} 29. Bxe7
{[%clk 0:01:33.3]} 29... Kxe7 {[%clk 0:00:35.3]} 30. Rc7+ {[%clk 0:01:33.8]}
30... Kd8 {[%clk 0:00:35.1]} 31. Rc6 {[%clk 0:01:34.1]} 31... Rb3+ {[%clk
0:00:33.8]} 32. Kd2 {[%clk 0:01:33]} 32... Rb4 {[%clk 0:00:34.3]} 33. Ke3 {[%clk
0:01:33]} 33... Rb3+ {[%clk 0:00:34.9]} 34. Kf4 {[%clk 0:01:27.8]} 34... Rd3
{[%clk 0:00:34.2]} 35. Rxe6 {[%clk 0:01:24.4]} 35... Rxd4+ {[%clk 0:00:34]} 36.
Kf3 {[%clk 0:01:14.5]} 36... Rd2 {[%clk 0:00:21.6]} 37. Rxa6 {[%clk 0:01:13.1]}
37... d4 {[%clk 0:00:22.1]} 38. Ra7 {[%clk 0:01:06.5]} 38... g6 {[%clk
0:00:16.7]} 39. Ra6 {[%clk 0:01:06.2]} 39... Ra2 {[%clk 0:00:14]} 40. Rxg6
{[%clk 0:01:05.6]} 40... Rxa5 {[%clk 0:00:14.4]} 41. Ke4 {[%clk 0:01:05.1]}
41... d3 {[%clk 0:00:15]} 42. Rd6+ {[%clk 0:01:04.5]} 42... Ke7 {[%clk
0:00:15.1]} 43. Rxd3 {[%clk 0:01:05]} 43... Ra4+ {[%clk 0:00:15.8]} 44. Rd4
{[%clk 0:01:05.3]} 44... Ra2 {[%clk 0:00:15.6]} 45. Kf3 {[%clk 0:01:02.2]} 45...
Ke6 {[%clk 0:00:15.5]} 46. Re4 {[%clk 0:00:57.8]} 46... Kf5 {[%clk 0:00:15.9]}
47. Re3 {[%clk 0:00:57.8]} 47... Ra4 {[%clk 0:00:15.1]} 48. e6 {[%clk
0:00:57.2]} 48... Ra8 {[%clk 0:00:11.6]} 49. e7 {[%clk 0:00:57.2]} 49... Re8
{[%clk 0:00:11.8]} 50. g3 {[%clk 0:00:57.6]} 50... Kf6 {[%clk 0:00:12.1]} 51.
Kf4 {[%clk 0:00:58.1]} 51... Kf7 {[%clk 0:00:11.8]} 52. Kf5 {[%clk 0:00:57.7]}
52... Kg7 {[%clk 0:00:10.5]} 53. Kg5 {[%clk 0:00:58]} 53... Kf7 {[%clk
0:00:10.8]} 54. Kxh5 {[%clk 0:00:56]} 54... Kf6 {[%clk 0:00:11.7]} 55. Kg4
{[%clk 0:00:55.7]} 55... Kg6 {[%clk 0:00:11.8]} 56. Kh3 {[%clk 0:00:56]} 56...
Kf6 {[%clk 0:00:12.3]} 57. g4 {[%clk 0:00:56.3]} 57... Kg6 {[%clk 0:00:12.7]}
58. f4 {[%clk 0:00:56.6]} 58... Kf6 {[%clk 0:00:13.4]} 59. h5 {[%clk 0:00:56.3]}
59... Kf7 {[%clk 0:00:13.4]} 60. g5 {[%clk 0:00:56.3]} 1-0

[Event "Late-Titled-Tuesday-Blitz-October-10-2023"]
[Site "Chess.com"]
[Date "2023.10.10"]
[Round "1"]
[White "Harald_Schmidt"]
[Black "TatjanaVasilevich"]
[Result "0-1"]
[WhiteElo "2330"]
[BlackElo "2644"]
[TimeControl "180+1"]
[EndTime "14:07:19 PDT"]
[Termination "TatjanaVasilevich won by checkmate"]

1. e4 {[%clk 0:02:59.1]} 1... c5 {[%clk 0:03:00]} 2. Nf3 {[%clk 0:02:58.4]} 2...
Nc6 {[%clk 0:02:59.2]} 3. Bb5 {[%clk 0:02:57.1]} 3... g6 {[%clk 0:02:58.9]} 4.
O-O {[%clk 0:02:56.2]} 4... Bg7 {[%clk 0:02:58.6]} 5. Re1 {[%clk 0:02:55.9]}
5... e5 {[%clk 0:02:58.6]} 6. a4 {[%clk 0:02:53.1]} 6... Nge7 {[%clk 0:02:56.5]}
7. c3 {[%clk 0:02:52]} 7... O-O {[%clk 0:02:56.1]} 8. d3 {[%clk 0:02:50.6]} 8...
a6 {[%clk 0:02:56]} 9. Bc4 {[%clk 0:02:49.7]} 9... d6 {[%clk 0:02:48]} 10. Be3
{[%clk 0:02:47]} 10... Rb8 {[%clk 0:02:47.4]} 11. d4 {[%clk 0:02:46]} 11... cxd4
{[%clk 0:02:43.1]} 12. cxd4 {[%clk 0:02:45.2]} 12... Bg4 {[%clk 0:02:43.6]} 13.
d5 {[%clk 0:02:36.4]} 13... Nd4 {[%clk 0:02:41.2]} 14. Nbd2 {[%clk 0:02:30.1]}
14... b5 {[%clk 0:02:34.3]} 15. axb5 {[%clk 0:02:28.9]} 15... axb5 {[%clk
0:02:35.2]} 16. Bd3 {[%clk 0:02:28.9]} 16... Nxf3+ {[%clk 0:02:21.3]} 17. Nxf3
{[%clk 0:02:28.2]} 17... f5 {[%clk 0:02:20.7]} 18. h3 {[%clk 0:02:15.7]} 18...
fxe4 {[%clk 0:02:04.5]} 19. hxg4 {[%clk 0:01:59.9]} 19... exd3 {[%clk
0:02:04.3]} 20. Qxd3 {[%clk 0:01:46.9]} 20... Qd7 {[%clk 0:02:04.1]} 21. Ng5
{[%clk 0:01:39.9]} 21... Qxg4 {[%clk 0:01:49.1]} 22. Ra7 {[%clk 0:01:37.1]}
22... Bf6 {[%clk 0:01:35.5]} 23. Ne6 {[%clk 0:01:33.6]} 23... Rfc8 {[%clk
0:01:35.2]} 24. Rd7 {[%clk 0:01:14.1]} 24... e4 {[%clk 0:01:25.8]} 25. Qb3
{[%clk 0:01:06.4]} 25... Nf5 {[%clk 0:01:17.7]} 26. Ra1 {[%clk 0:01:04.8]} 26...
Ra8 {[%clk 0:01:01.8]} 27. Rb1 {[%clk 0:00:48.4]} 27... Nh4 {[%clk 0:00:49.9]}
28. g3 {[%clk 0:00:46.6]} 28... Be5 {[%clk 0:00:48.9]} 29. Qd1 {[%clk
0:00:35.7]} 29... Nf3+ {[%clk 0:00:21.3]} 30. Kf1 {[%clk 0:00:34.8]} 30... Rc4
{[%clk 0:00:16.7]} 31. Bf4 {[%clk 0:00:33.8]} 31... Rac8 {[%clk 0:00:16.1]} 32.
Bxe5 {[%clk 0:00:32.8]} 32... Qh3+ {[%clk 0:00:15.8]} 33. Ke2 {[%clk 0:00:32.5]}
33... dxe5 {[%clk 0:00:15.4]} 34. Qh1 {[%clk 0:00:16.3]} 34... Nd4+ {[%clk
0:00:15.3]} 35. Ke3 {[%clk 0:00:14.6]} 35... Nf5+ {[%clk 0:00:15.3]} 36. Ke2
{[%clk 0:00:10.3]} 36... Rc2+ {[%clk 0:00:15.4]} 37. Kd1 {[%clk 0:00:09.5]}
37... Qxh1# {[%clk 0:00:15.3]} 0-1

[Event "Late-Titled-Tuesday-Blitz-October-10-2023"]
[Site "Chess.com"]
[Date "2023.10.10"]
[Round "1"]
[White "Superfelix"]
[Black "realmadridfc123"]
[Result "1-0"]
[WhiteElo "2471"]
[BlackElo "2807"]
[TimeControl "180+1"]
[EndTime "14:07:21 PDT"]
[Termination "Superfelix won by resignation"]

1. e4 {[%clk 0:03:00.9]} 1... c6 {[%clk 0:02:59.3]} 2. Nc3 {[%clk 0:03:00.3]}
2... d5 {[%clk 0:02:59.9]} 3. Qe2 {[%clk 0:02:55]} 3... d4 {[%clk 0:02:58.1]} 4.
Nd1 {[%clk 0:02:54.3]} 4... e5 {[%clk 0:02:55.9]} 5. d3 {[%clk 0:02:54.7]} 5...
Bd6 {[%clk 0:02:55.7]} 6. g3 {[%clk 0:02:55.1]} 6... h5 {[%clk 0:02:45.9]} 7. h4
{[%clk 0:02:53.9]} 7... Bg4 {[%clk 0:02:37.2]} 8. f3 {[%clk 0:02:53.2]} 8... Be6
{[%clk 0:02:37.9]} 9. Bh3 {[%clk 0:02:53.6]} 9... Qf6 {[%clk 0:02:30.7]} 10.
Bxe6 {[%clk 0:02:53.2]} 10... Qxe6 {[%clk 0:02:30.7]} 11. Nf2 {[%clk 0:02:51.2]}
11... c5 {[%clk 0:02:29.4]} 12. f4 {[%clk 0:02:51.1]} 12... exf4 {[%clk
0:02:23.9]} 13. Bxf4 {[%clk 0:02:51]} 13... Nc6 {[%clk 0:02:22.8]} 14. Nf3
{[%clk 0:02:48.5]} 14... f6 {[%clk 0:02:21.3]} 15. Bxd6 {[%clk 0:02:44.5]} 15...
Qxd6 {[%clk 0:02:21.6]} 16. O-O-O {[%clk 0:02:43.8]} 16... Nh6 {[%clk
0:02:19.4]} 17. Rhg1 {[%clk 0:02:39.5]} 17... O-O-O {[%clk 0:02:16]} 18. Kb1
{[%clk 0:02:37]} 18... Qd7 {[%clk 0:01:37.5]} 19. Qd2 {[%clk 0:02:26.6]} 19...
Ng4 {[%clk 0:01:37.1]} 20. Nxg4 {[%clk 0:02:25.3]} 20... hxg4 {[%clk 0:01:38]}
21. Nh2 {[%clk 0:02:18.9]} 21... Ne5 {[%clk 0:01:32.4]} 22. Rdf1 {[%clk
0:02:17.9]} 22... b6 {[%clk 0:01:17.4]} 23. Rf5 {[%clk 0:02:16.6]} 23... Kb7
{[%clk 0:01:17.7]} 24. h5 {[%clk 0:02:14.1]} 24... Rh6 {[%clk 0:01:14.6]} 25.
Qf4 {[%clk 0:02:13.2]} 25... Rdh8 {[%clk 0:01:08.3]} 26. Nxg4 {[%clk 0:02:11.3]}
26... Nxg4 {[%clk 0:01:08.4]} 27. Qxg4 {[%clk 0:02:11.6]} 27... Rxh5 {[%clk
0:01:09.1]} 28. Rgf1 {[%clk 0:02:03.5]} 28... Rh2 {[%clk 0:01:05.9]} 29. e5
{[%clk 0:01:58.1]} 29... Qa4 {[%clk 0:00:41]} 30. Qe4+ {[%clk 0:01:47]} 30...
Ka6 {[%clk 0:00:40.7]} 31. b3 {[%clk 0:01:36.4]} 31... Qa5 {[%clk 0:00:27]} 32.
exf6 {[%clk 0:01:31.3]} 32... gxf6 {[%clk 0:00:27.9]} 33. Rxf6 {[%clk 0:01:27]}
33... Rxc2 {[%clk 0:00:27.7]} 34. Kxc2 {[%clk 0:01:22.5]} 34... Rh2+ {[%clk
0:00:27.4]} 35. R6f2 {[%clk 0:01:17.8]} 35... Qxa2+ {[%clk 0:00:26.5]} 36. Kc1
{[%clk 0:01:17.8]} 36... Rxf2 {[%clk 0:00:22.6]} 37. Rxf2 {[%clk 0:01:18.7]}
37... Qxf2 {[%clk 0:00:23.5]} 38. g4 {[%clk 0:01:17]} 38... Ka5 {[%clk
0:00:18.7]} 39. Kd1 {[%clk 0:00:53.8]} 39... Kb4 {[%clk 0:00:17.2]} 40. Qe1+
{[%clk 0:00:53]} 40... Qxe1+ {[%clk 0:00:13.6]} 41. Kxe1 {[%clk 0:00:53.9]}
41... Kxb3 {[%clk 0:00:10.7]} 42. Kd2 {[%clk 0:00:42.3]} 42... b5 {[%clk
0:00:08.4]} 43. g5 {[%clk 0:00:42.3]} 43... c4 {[%clk 0:00:09]} 44. g6 {[%clk
0:00:42.2]} 44... c3+ {[%clk 0:00:09]} 45. Kc1 {[%clk 0:00:40.7]} 45... Ka2
{[%clk 0:00:08.7]} 46. g7 {[%clk 0:00:41.1]} 46... b4 {[%clk 0:00:09.6]} 47.
g8=Q+ {[%clk 0:00:41.3]} 47... b3 {[%clk 0:00:10.5]} 48. Qc4 {[%clk 0:00:39.9]}
1-0

[Event "Late-Titled-Tuesday-Blitz-October-10-2023"]
[Site "Chess.com"]
[Date "2023.10.10"]
[Round "1"]
[White "rookoco"]
[Black "Efremov_Vlad"]
[Result "1-0"]
[WhiteElo "2753"]
[BlackElo "2412"]
[TimeControl "180+1"]
[EndTime "14:07:28 PDT"]
[Termination "rookoco won by checkmate"]

1. e4 {[%clk 0:02:47]} 1... c5 {[%clk 0:02:59.8]} 2. Nf3 {[%clk 0:02:46.7]} 2...
e6 {[%clk 0:03:00.5]} 3. d4 {[%clk 0:02:46]} 3... cxd4 {[%clk 0:03:01.4]} 4.
Nxd4 {[%clk 0:02:46.5]} 4... Nf6 {[%clk 0:03:02.2]} 5. Nc3 {[%clk 0:02:35.4]}
5... Nc6 {[%clk 0:03:02.1]} 6. a3 {[%clk 0:02:30.2]} 6... d5 {[%clk 0:03:01.5]}
7. exd5 {[%clk 0:02:17.1]} 7... exd5 {[%clk 0:02:56]} 8. Bb5 {[%clk 0:02:16.2]}
8... Bd7 {[%clk 0:02:56.2]} 9. O-O {[%clk 0:02:16]} 9... Be7 {[%clk 0:02:56.1]}
10. Re1 {[%clk 0:02:05.8]} 10... O-O {[%clk 0:02:55.4]} 11. Bf4 {[%clk
0:02:05.4]} 11... a6 {[%clk 0:02:46.2]} 12. Ba4 {[%clk 0:01:59.7]} 12... Bc5
{[%clk 0:02:40]} 13. Be3 {[%clk 0:01:50]} 13... Qb6 {[%clk 0:02:22.6]} 14. Bxc6
{[%clk 0:01:43.6]} 14... Bxc6 {[%clk 0:02:22.7]} 15. b4 {[%clk 0:01:43]} 15...
Bxd4 {[%clk 0:02:16.7]} 16. Bxd4 {[%clk 0:01:41.1]} 16... Qd8 {[%clk 0:02:17.2]}
17. Qf3 {[%clk 0:01:36.7]} 17... Ne4 {[%clk 0:02:09.8]} 18. Rad1 {[%clk
0:01:34.4]} 18... Qd7 {[%clk 0:01:36.2]} 19. Nxe4 {[%clk 0:01:29.4]} 19... dxe4
{[%clk 0:01:36.3]} 20. Qg3 {[%clk 0:01:30]} 20... f5 {[%clk 0:01:09.7]} 21. Bc5
{[%clk 0:01:28]} 21... f4 {[%clk 0:01:10.1]} 22. Qb3+ {[%clk 0:01:10]} 22... Qf7
{[%clk 0:01:10.7]} 23. Bxf8 {[%clk 0:01:08.9]} 23... Qxb3 {[%clk 0:01:11.1]} 24.
cxb3 {[%clk 0:01:08.9]} 24... Rxf8 {[%clk 0:01:12]} 25. a4 {[%clk 0:01:07.4]}
25... Rf5 {[%clk 0:00:59.5]} 26. Rd4 {[%clk 0:01:05.5]} 26... Rg5 {[%clk
0:00:55]} 27. Kf1 {[%clk 0:00:57.4]} 27... Rh5 {[%clk 0:00:51.5]} 28. h3 {[%clk
0:00:56.4]} 28... f3 {[%clk 0:00:51.7]} 29. gxf3 {[%clk 0:00:50.7]} 29... exf3
{[%clk 0:00:52.5]} 30. h4 {[%clk 0:00:51.1]} 30... Rd5 {[%clk 0:00:14.6]} 31.
Rxd5 {[%clk 0:00:47.6]} 31... Bxd5 {[%clk 0:00:15.5]} 32. Re7 {[%clk 0:00:47.4]}
32... Bxb3 {[%clk 0:00:13.8]} 33. a5 {[%clk 0:00:41.9]} 33... Bd5 {[%clk
0:00:14.1]} 34. Ke1 {[%clk 0:00:41.3]} 34... Kf8 {[%clk 0:00:13.9]} 35. Rc7
{[%clk 0:00:41.3]} 35... h6 {[%clk 0:00:12.3]} 36. Kd2 {[%clk 0:00:40.4]} 36...
g5 {[%clk 0:00:11.8]} 37. hxg5 {[%clk 0:00:40.7]} 37... hxg5 {[%clk 0:00:12.7]}
38. Ke3 {[%clk 0:00:41.2]} 38... Bc6 {[%clk 0:00:10.9]} 39. Kd4 {[%clk
0:00:39.9]} 39... g4 {[%clk 0:00:10.9]} 40. Ke3 {[%clk 0:00:40]} 40... Ke8
{[%clk 0:00:09.6]} 41. Kf4 {[%clk 0:00:39.9]} 41... Kd8 {[%clk 0:00:10.4]} 42.
Rxc6 {[%clk 0:00:36.6]} 42... bxc6 {[%clk 0:00:10.4]} 43. Kxg4 {[%clk
0:00:36.9]} 43... Kd7 {[%clk 0:00:10.4]} 44. Kxf3 {[%clk 0:00:37.5]} 44... c5
{[%clk 0:00:08.6]} 45. bxc5 {[%clk 0:00:36.7]} 45... Kc6 {[%clk 0:00:09.5]} 46.
Ke4 {[%clk 0:00:36.9]} 46... Kxc5 {[%clk 0:00:08.4]} 47. f4 {[%clk 0:00:37.5]}
47... Kb5 {[%clk 0:00:09.3]} 48. Kd5 {[%clk 0:00:36]} 48... Kxa5 {[%clk
0:00:10.2]} 49. Kc5 {[%clk 0:00:36]} 49... Ka4 {[%clk 0:00:10.1]} 50. f5 {[%clk
0:00:36.9]} 50... a5 {[%clk 0:00:10.4]} 51. f6 {[%clk 0:00:36.6]} 51... Kb3
{[%clk 0:00:10.9]} 52. f7 {[%clk 0:00:36.7]} 52... a4 {[%clk 0:00:11.8]} 53.
f8=Q {[%clk 0:00:37.3]} 53... a3 {[%clk 0:00:12.7]} 54. Qf3+ {[%clk 0:00:37.3]}
54... Kb2 {[%clk 0:00:13.6]} 55. Kb4 {[%clk 0:00:37.5]} 55... a2 {[%clk
0:00:14.5]} 56. Qe2+ {[%clk 0:00:36.2]} 56... Kb1 {[%clk 0:00:12.6]} 57. Kb3
{[%clk 0:00:35.8]} 57... a1=Q {[%clk 0:00:12.1]} 58. Qc2# {[%clk 0:00:33.5]} 1-0

[Event "Late-Titled-Tuesday-Blitz-October-10-2023"]
[Site "Chess.com"]
[Date "2023.10.10"]
[Round "1"]
[White "subham777"]
[Black "nihalsarin"]
[Result "0-1"]
[WhiteElo "2523"]
[BlackElo "3114"]
[TimeControl "180+1"]
[EndTime "14:07:30 PDT"]
[Termination "nihalsarin won on time"]

1. e4 {[%clk 0:03:00.9]} 1... e5 {[%clk 0:02:58.6]} 2. Nf3 {[%clk 0:03:00.5]}
2... Nc6 {[%clk 0:02:58.3]} 3. Bc4 {[%clk 0:03:00.4]} 3... Bc5 {[%clk
0:02:58.1]} 4. c3 {[%clk 0:02:59]} 4... Nf6 {[%clk 0:02:58.2]} 5. d3 {[%clk
0:02:59.1]} 5... d6 {[%clk 0:02:57]} 6. Nbd2 {[%clk 0:02:58.7]} 6... a6 {[%clk
0:02:57.5]} 7. Nf1 {[%clk 0:02:58.7]} 7... Ba7 {[%clk 0:02:57.5]} 8. Ng3 {[%clk
0:02:59]} 8... O-O {[%clk 0:02:57.3]} 9. Bg5 {[%clk 0:02:58.7]} 9... h6 {[%clk
0:02:55.1]} 10. Bh4 {[%clk 0:02:58.3]} 10... Nb8 {[%clk 0:02:03.2]} 11. Qd2
{[%clk 0:02:48.7]} 11... Nbd7 {[%clk 0:02:01.6]} 12. Bb3 {[%clk 0:02:41.9]}
12... Kh7 {[%clk 0:01:52.3]} 13. Bc2 {[%clk 0:02:37.6]} 13... Re8 {[%clk
0:01:48.7]} 14. O-O-O {[%clk 0:02:30.4]} 14... g6 {[%clk 0:01:42.8]} 15. d4
{[%clk 0:02:19.3]} 15... Qe7 {[%clk 0:01:38.7]} 16. Rhe1 {[%clk 0:02:16.5]}
16... Kg7 {[%clk 0:01:38.2]} 17. Kb1 {[%clk 0:02:09.4]} 17... Nf8 {[%clk
0:01:38.1]} 18. h3 {[%clk 0:01:46.6]} 18... N8h7 {[%clk 0:01:37.2]} 19. Ne2
{[%clk 0:01:12.2]} 19... Bd7 {[%clk 0:01:28.8]} 20. dxe5 {[%clk 0:01:02.1]}
20... dxe5 {[%clk 0:01:25.7]} 21. Bg3 {[%clk 0:01:00.7]} 21... Qc5 {[%clk
0:01:13.3]} 22. b4 {[%clk 0:00:45.8]} 22... Qb6 {[%clk 0:01:07.8]} 23. Bxe5
{[%clk 0:00:36.3]} 23... Rxe5 {[%clk 0:01:03.9]} 24. Nxe5 {[%clk 0:00:35.1]}
24... Be8 {[%clk 0:01:04.8]} 25. f3 {[%clk 0:00:29.5]} 25... a5 {[%clk
0:01:04.6]} 26. Nc4 {[%clk 0:00:29.2]} 26... Qa6 {[%clk 0:01:01.8]} 27. Nxa5
{[%clk 0:00:27.4]} 27... c5 {[%clk 0:00:58.1]} 28. Bd3 {[%clk 0:00:23.3]} 28...
b5 {[%clk 0:00:58]} 29. Qb2 {[%clk 0:00:18.5]} 29... c4 {[%clk 0:00:54.7]} 30.
Bc2 {[%clk 0:00:18.1]} 30... Nf8 {[%clk 0:00:54.8]} 31. Nd4 {[%clk 0:00:17.7]}
31... Nh5 {[%clk 0:00:53.9]} 32. Qc1 {[%clk 0:00:11.3]} 32... Bb8 {[%clk
0:00:48.9]} 33. e5 {[%clk 0:00:10.2]} 33... Bc7 {[%clk 0:00:39.9]} 34. Be4
{[%clk 0:00:10.4]} 34... Ra7 {[%clk 0:00:37.7]} 35. Qc2 {[%clk 0:00:08.7]} 35...
Nf4 {[%clk 0:00:34.9]} 36. h4 {[%clk 0:00:05.9]} 36... Bxa5 {[%clk 0:00:31.5]}
37. bxa5 {[%clk 0:00:05.9]} 37... Qxa5 {[%clk 0:00:32.4]} 38. Bc6 {[%clk
0:00:04.1]} 38... b4 {[%clk 0:00:22.9]} 39. cxb4 {[%clk 0:00:02.8]} 39... Qxb4+
{[%clk 0:00:20.5]} 40. Ka1 {[%clk 0:00:03.4]} 40... Nd3 {[%clk 0:00:18.1]} 41.
Re2 {[%clk 0:00:01.7]} 41... Qc5 {[%clk 0:00:16.8]} 42. Bxe8 {[%clk 0:00:02.4]}
42... Qxd4+ {[%clk 0:00:16.9]} 43. Kb1 {[%clk 0:00:02.5]} 43... Rb7+ {[%clk
0:00:17.1]} 44. Qb2 {[%clk 0:00:01.8]} 44... Rxb2+ {[%clk 0:00:17.1]} 0-1

[Event "Late-Titled-Tuesday-Blitz-October-10-2023"]
[Site "Chess.com"]
[Date "2023.10.10"]
[Round "1"]
[White "Tonychess32"]
[Black "Fandorine"]
[Result "0-1"]
[WhiteElo "2496"]
[BlackElo "2929"]
[TimeControl "180+1"]
[EndTime "14:07:34 PDT"]
[Termination "Fandorine won by resignation"]

1. e4 {[%clk 0:03:00.4]} 1... c5 {[%clk 0:02:54.6]} 2. Nf3 {[%clk 0:03:00.9]}
2... g6 {[%clk 0:02:54.6]} 3. c3 {[%clk 0:03:01.2]} 3... d5 {[%clk 0:02:53.4]}
4. exd5 {[%clk 0:03:01.7]} 4... Qxd5 {[%clk 0:02:53.8]} 5. d4 {[%clk 0:03:02.3]}
5... Bg7 {[%clk 0:02:53.2]} 6. Be2 {[%clk 0:03:03.1]} 6... Nf6 {[%clk
0:02:49.1]} 7. Be3 {[%clk 0:03:03.5]} 7... cxd4 {[%clk 0:02:47.5]} 8. Qxd4
{[%clk 0:03:04]} 8... Nc6 {[%clk 0:02:47.5]} 9. Qxd5 {[%clk 0:03:04.3]} 9...
Nxd5 {[%clk 0:02:48.4]} 10. Bd2 {[%clk 0:02:58.9]} 10... O-O {[%clk 0:02:48.1]}
11. O-O {[%clk 0:02:59.4]} 11... Rd8 {[%clk 0:02:47.8]} 12. Na3 {[%clk
0:02:55.9]} 12... Bg4 {[%clk 0:02:36.8]} 13. h3 {[%clk 0:02:42.4]} 13... Bf5
{[%clk 0:02:12.9]} 14. Rfd1 {[%clk 0:02:38.6]} 14... Rac8 {[%clk 0:02:10]} 15.
Be1 {[%clk 0:02:16.8]} 15... Nf4 {[%clk 0:01:57.6]} 16. Bf1 {[%clk 0:02:17.4]}
16... Nd3 {[%clk 0:01:55.4]} 17. Bxd3 {[%clk 0:02:15.5]} 17... Bxd3 {[%clk
0:01:55.1]} 18. Nb1 {[%clk 0:01:37.5]} 18... e5 {[%clk 0:01:47.9]} 19. Rc1
{[%clk 0:01:25.4]} 19... e4 {[%clk 0:01:42.7]} 20. Nh2 {[%clk 0:01:18.4]} 20...
f5 {[%clk 0:01:42.4]} 21. Na3 {[%clk 0:01:15.1]} 21... b5 {[%clk 0:01:28.5]} 22.
Nc2 {[%clk 0:01:11.3]} 22... a5 {[%clk 0:01:25.4]} 23. Nf1 {[%clk 0:00:57.9]}
23... b4 {[%clk 0:01:09.5]} 24. Nce3 {[%clk 0:00:57.9]} 24... f4 {[%clk
0:01:04.8]} 25. Ng4 {[%clk 0:00:57.8]} 25... h5 {[%clk 0:01:04.6]} 26. Ngh2
{[%clk 0:00:58]} 26... g5 {[%clk 0:01:04.4]} 27. Rd1 {[%clk 0:00:49.6]} 27... a4
{[%clk 0:00:59.7]} 28. Rac1 {[%clk 0:00:47.7]} 28... b3 {[%clk 0:00:59.1]} 29.
axb3 {[%clk 0:00:42.3]} 29... axb3 {[%clk 0:01:00]} 30. Ra1 {[%clk 0:00:42.1]}
30... Ne5 {[%clk 0:00:56.5]} 31. Nd2 {[%clk 0:00:39.1]} 31... Bc2 {[%clk
0:00:54.7]} 32. Rdc1 {[%clk 0:00:34.8]} 32... Nd3 {[%clk 0:00:54.2]} 33. Nhf1
{[%clk 0:00:27.6]} 33... Nxc1 {[%clk 0:00:49.8]} 34. Rxc1 {[%clk 0:00:28.1]}
34... g4 {[%clk 0:00:46.7]} 35. hxg4 {[%clk 0:00:28]} 35... hxg4 {[%clk
0:00:47.6]} 36. g3 {[%clk 0:00:25.9]} 36... Bh6 {[%clk 0:00:44.6]} 37. gxf4
{[%clk 0:00:25.5]} 37... Bxf4 {[%clk 0:00:45.5]} 38. Ne3 {[%clk 0:00:26.4]}
38... Bxe3 {[%clk 0:00:45.7]} 39. fxe3 {[%clk 0:00:26.8]} 39... Ra8 {[%clk
0:00:37.4]} 40. Kf2 {[%clk 0:00:21.2]} 40... Ra2 {[%clk 0:00:37.7]} 41. Nc4
{[%clk 0:00:21.6]} 41... Bd3 {[%clk 0:00:33.6]} 42. Ne5 {[%clk 0:00:17.2]} 42...
Rxb2+ {[%clk 0:00:33.1]} 43. Kg3 {[%clk 0:00:17.7]} 43... Rc2 {[%clk 0:00:32.5]}
44. Rd1 {[%clk 0:00:12.7]} 44... b2 {[%clk 0:00:32.7]} 45. Nxg4 {[%clk 0:00:08]}
45... Rc1 {[%clk 0:00:32]} 0-1